[Event "*** Titled Tuesday Blitz"]
[Site "Chess.com"]
[Date "2020.10.27"]
[Round "7"]
[White "chesstrainer2042"]
[Black "anon569"]
[Result "1-0"]
[WhiteElo "2405"]
[BlackElo "2252"]
[TimeControl "180+1"]
[EndTime "11:18:14 PDT"]
[Termination "chesstrainer2042 won on time"]

1. d4 {[%clk 0:03:00.9]} 1... Nf6 {[%clk 0:02:58.2]} 2. Nf3 {[%clk 0:02:59.9]}
2... e6 {[%clk 0:02:57.9]} 3. e3 {[%clk 0:03:00.3]} 3... b6 {[%clk 0:02:55.3]}
4. Bd3 {[%clk 0:03:00.5]} 4... c5 {[%clk 0:02:53.9]} 5. O-O {[%clk 0:02:55.7]}
5... Bb7 {[%clk 0:02:53.1]} 6. c4 {[%clk 0:02:56.2]} 6... Be7 {[%clk 0:02:38.3]}
7. Nc3 {[%clk 0:02:55.5]} 7... cxd4 {[%clk 0:02:31.6]} 8. exd4 {[%clk
0:02:54.8]} 8... d6 {[%clk 0:02:31.4]} 9. d5 {[%clk 0:02:54.8]} 9... e5 {[%clk
0:02:30.3]} 10. Nh4 {[%clk 0:02:40.4]} 10... Nbd7 {[%clk 0:01:52.4]} 11. Nf5
{[%clk 0:02:39.6]} 11... Bf8 {[%clk 0:01:51]} 12. f4 {[%clk 0:02:36.1]} 12... g6
{[%clk 0:01:49.2]} 13. Ng3 {[%clk 0:02:30.1]} 13... Bg7 {[%clk 0:01:46.4]} 14.
Nce4 {[%clk 0:02:24.1]} 14... Nxe4 {[%clk 0:01:43.1]} 15. Nxe4 {[%clk
0:02:23.8]} 15... Nc5 {[%clk 0:00:49.4]} 16. f5 {[%clk 0:02:17.8]} 16... Nxe4
{[%clk 0:00:38.5]} 17. Bxe4 {[%clk 0:02:17.4]} 17... Qc7 {[%clk 0:00:37.7]} 18.
b3 {[%clk 0:02:10.7]} 18... Qc5+ {[%clk 0:00:20.5]} 19. Kh1 {[%clk 0:02:10.2]}
19... O-O-O {[%clk 0:00:19.8]} 20. Qe2 {[%clk 0:01:57]} 20... Kb8 {[%clk
0:00:12.7]} 21. f6 {[%clk 0:01:54.4]} 21... Bf8 {[%clk 0:00:11.7]} 22. Be3
{[%clk 0:01:54.1]} 22... Qc7 {[%clk 0:00:11.7]} 23. b4 {[%clk 0:01:53.6]} 23...
h5 {[%clk 0:00:11.1]} 24. a4 {[%clk 0:01:50]} 24... Bh6 {[%clk 0:00:09.7]} 25.
Rfc1 {[%clk 0:01:42.2]} 25... Bxe3 {[%clk 0:00:08.5]} 26. Qxe3 {[%clk
0:01:42.5]} 26... Rc8 {[%clk 0:00:08.1]} 27. a5 {[%clk 0:01:40.4]} 27... bxa5
{[%clk 0:00:07.7]} 28. bxa5 {[%clk 0:01:31.8]} 28... Qc5 {[%clk 0:00:07.5]} 29.
Qb3 {[%clk 0:01:31.2]} 29... Ka8 {[%clk 0:00:07.7]} 30. a6 {[%clk 0:01:29.3]}
30... Bxa6 {[%clk 0:00:04.7]} 31. Rxa6 {[%clk 0:01:28.2]} 31... Rb8 {[%clk
0:00:05.2]} 32. Qa2 {[%clk 0:01:15]} 32... Rb7 {[%clk 0:00:02]} 33. Ra1 {[%clk
0:01:13.8]} 1-0

[Event "*** Titled Tuesday Blitz"]
[Site "Chess.com"]
[Date "2020.10.27"]
[Round "7"]
[White "BikingBrian"]
[Black "Sergey85Rodchenkov"]
[Result "0-1"]
[WhiteElo "2269"]
[BlackElo "2449"]
[TimeControl "180+1"]
[EndTime "11:18:16 PDT"]
[Termination "Sergey85Rodchenkov won on time"]

1. d4 {[%clk 0:03:00.9]} 1... Nf6 {[%clk 0:02:59.3]} 2. Bg5 {[%clk 0:03:00.8]}
2... c5 {[%clk 0:02:58.7]} 3. Nc3 {[%clk 0:03:00.2]} 3... cxd4 {[%clk
0:02:54.7]} 4. Qxd4 {[%clk 0:03:01.1]} 4... Nc6 {[%clk 0:02:54.4]} 5. Qh4 {[%clk
0:03:01]} 5... d5 {[%clk 0:02:53]} 6. O-O-O {[%clk 0:02:48.2]} 6... e6 {[%clk
0:02:52.4]} 7. e4 {[%clk 0:02:32.5]} 7... Be7 {[%clk 0:02:51.6]} 8. exd5 {[%clk
0:02:30.3]} 8... exd5 {[%clk 0:02:51]} 9. Nf3 {[%clk 0:01:42.2]} 9... Be6 {[%clk
0:02:48.6]} 10. Nd4 {[%clk 0:01:35.9]} 10... Nxd4 {[%clk 0:02:47.2]} 11. Qxd4
{[%clk 0:01:32.6]} 11... O-O {[%clk 0:02:44.3]} 12. Bd3 {[%clk 0:01:29.8]} 12...
Qa5 {[%clk 0:02:40.6]} 13. Kb1 {[%clk 0:01:28]} 13... Rfd8 {[%clk 0:02:35.9]}
14. f4 {[%clk 0:01:21]} 14... Bc5 {[%clk 0:02:15.7]} 15. Qa4 {[%clk 0:01:19.4]}
15... Qxa4 {[%clk 0:02:07.9]} 16. Nxa4 {[%clk 0:01:20.3]} 16... Be7 {[%clk
0:02:05]} 17. f5 {[%clk 0:01:17.7]} 17... Bd7 {[%clk 0:02:04.7]} 18. Nc3 {[%clk
0:01:17.6]} 18... Bc6 {[%clk 0:02:03.8]} 19. Nb5 {[%clk 0:01:15.2]} 19... d4
{[%clk 0:01:59.7]} 20. Rhe1 {[%clk 0:01:12.2]} 20... Kf8 {[%clk 0:01:58.7]} 21.
c3 {[%clk 0:00:54.6]} 21... dxc3 {[%clk 0:01:53]} 22. Nxc3 {[%clk 0:00:55.5]}
22... Bxg2 {[%clk 0:01:49.2]} 23. Rd2 {[%clk 0:00:34.1]} 23... Bf3 {[%clk
0:01:41.8]} 24. Re3 {[%clk 0:00:23.8]} 24... Bc6 {[%clk 0:01:40.1]} 25. Rde2
{[%clk 0:00:15]} 25... Bc5 {[%clk 0:01:39.8]} 26. Rg3 {[%clk 0:00:14]} 26... Re8
{[%clk 0:01:29.9]} 27. Bxf6 {[%clk 0:00:13.8]} 27... gxf6 {[%clk 0:01:29.1]} 28.
Rxe8+ {[%clk 0:00:11.8]} 28... Rxe8 {[%clk 0:01:28.4]} 29. Rh3 {[%clk
0:00:10.4]} 29... Re3 {[%clk 0:01:21.8]} 30. Rxe3 {[%clk 0:00:07.9]} 30... Bxe3
{[%clk 0:01:21.5]} 31. Ne4 {[%clk 0:00:07.2]} 31... Bd4 {[%clk 0:01:19.9]} 32.
Kc2 {[%clk 0:00:06.6]} 32... Ke7 {[%clk 0:01:19.1]} 33. b4 {[%clk 0:00:05.7]}
33... b6 {[%clk 0:01:17.1]} 34. Kb3 {[%clk 0:00:04.4]} 34... Bd5+ {[%clk
0:01:16]} 35. Ka3 {[%clk 0:00:03]} 35... h5 {[%clk 0:01:14.1]} 36. Ng3 {[%clk
0:00:02.8]} 36... h4 {[%clk 0:01:11.7]} 37. Ne2 {[%clk 0:00:03]} 37... Be5
{[%clk 0:01:10.5]} 38. Ka4 {[%clk 0:00:01.2]} 38... Bxh2 {[%clk 0:01:09.5]} 39.
Kb5 {[%clk 0:00:01.2]} 39... Bxa2 {[%clk 0:01:07.6]} 0-1

[Event "*** Titled Tuesday Blitz"]
[Site "Chess.com"]
[Date "2020.10.27"]
[Round "7"]
[White "ChronicUnhappiness"]
[Black "mr65"]
[Result "1-0"]
[WhiteElo "2375"]
[BlackElo "2198"]
[TimeControl "180+1"]
[EndTime "11:18:21 PDT"]
[Termination "ChronicUnhappiness won by checkmate"]

1. c4 {[%clk 0:03:00.9]} 1... Nf6 {[%clk 0:02:59.2]} 2. Nf3 {[%clk 0:02:57.2]}
2... g6 {[%clk 0:02:59.1]} 3. Nc3 {[%clk 0:02:57.6]} 3... Bg7 {[%clk 0:02:59.2]}
4. e4 {[%clk 0:02:58]} 4... O-O {[%clk 0:02:59]} 5. d4 {[%clk 0:02:58.4]} 5...
d6 {[%clk 0:02:57.8]} 6. Be2 {[%clk 0:02:58.8]} 6... Na6 {[%clk 0:02:57.8]} 7.
O-O {[%clk 0:02:58.5]} 7... e5 {[%clk 0:02:57.7]} 8. Be3 {[%clk 0:02:58.7]} 8...
Ng4 {[%clk 0:02:56.5]} 9. Bg5 {[%clk 0:02:58.2]} 9... Qe8 {[%clk 0:02:56.6]} 10.
h3 {[%clk 0:02:56.9]} 10... Nf6 {[%clk 0:02:53]} 11. d5 {[%clk 0:02:31.6]} 11...
Nc5 {[%clk 0:02:49.8]} 12. Nd2 {[%clk 0:02:31]} 12... a5 {[%clk 0:02:48.2]} 13.
Qc2 {[%clk 0:02:23.5]} 13... h6 {[%clk 0:02:43.9]} 14. Be3 {[%clk 0:02:11.5]}
14... Nfxe4 {[%clk 0:02:36.1]} 15. Ndxe4 {[%clk 0:02:06.6]} 15... Nxe4 {[%clk
0:02:35.5]} 16. Nxe4 {[%clk 0:01:52.1]} 16... f5 {[%clk 0:02:34.4]} 17. Nc3
{[%clk 0:01:38.1]} 17... f4 {[%clk 0:02:33.3]} 18. Bd2 {[%clk 0:01:28]} 18... f3
{[%clk 0:02:32.9]} 19. Bxf3 {[%clk 0:01:24.6]} 19... Rxf3 {[%clk 0:02:32]} 20.
gxf3 {[%clk 0:01:21.2]} 20... Bxh3 {[%clk 0:02:31.2]} 21. Rfe1 {[%clk
0:01:05.9]} 21... Qf7 {[%clk 0:02:19.8]} 22. Qd3 {[%clk 0:01:03.6]} 22... Rf8
{[%clk 0:02:14.6]} 23. Re4 {[%clk 0:01:03.1]} 23... Bf5 {[%clk 0:02:10.3]} 24.
Kf1 {[%clk 0:00:56.4]} 24... g5 {[%clk 0:02:09.9]} 25. Ke2 {[%clk 0:00:51.3]}
25... Qh5 {[%clk 0:02:05.1]} 26. Rg1 {[%clk 0:00:31.5]} 26... Qh2 {[%clk
0:01:56.2]} 27. Rgg4 {[%clk 0:00:31.5]} 27... Bf6 {[%clk 0:01:47.2]} 28. Kd1
{[%clk 0:00:28.2]} 28... h5 {[%clk 0:01:37.6]} 29. Rg3 {[%clk 0:00:15.8]} 29...
Qxf2 {[%clk 0:01:29.9]} 30. Be1 {[%clk 0:00:15.7]} 30... Qxb2 {[%clk 0:01:29.1]}
31. Qc2 {[%clk 0:00:14]} 31... Qb6 {[%clk 0:01:15.6]} 32. Bf2 {[%clk 0:00:11.8]}
32... c5 {[%clk 0:01:12.9]} 33. Be3 {[%clk 0:00:10.5]} 33... h4 {[%clk 0:01:08]}
34. Rg2 {[%clk 0:00:09.7]} 34... Bd8 {[%clk 0:00:56.9]} 35. Bxg5 {[%clk
0:00:09.2]} 35... Bxg5 {[%clk 0:00:55.6]} 36. Rxg5+ {[%clk 0:00:08.7]} 36... Kh7
{[%clk 0:00:51.4]} 37. Rxh4# {[%clk 0:00:08.4]} 1-0

[Event "*** Titled Tuesday Blitz"]
[Site "Chess.com"]
[Date "2020.10.27"]
[Round "7"]
[White "Klavdia_Nik"]
[Black "Nathan_Filgueiras"]
[Result "0-1"]
[WhiteElo "2063"]
[BlackElo "2419"]
[TimeControl "180+1"]
[EndTime "11:18:21 PDT"]
[Termination "Nathan_Filgueiras won on time"]

1. Nf3 {[%clk 0:01:56]} 1... Nf6 {[%clk 0:02:58.6]} 2. c4 {[%clk 0:01:55.7]}
2... b6 {[%clk 0:02:57.1]} 3. g3 {[%clk 0:01:53.8]} 3... Bb7 {[%clk 0:02:57.5]}
4. Bg2 {[%clk 0:01:54.3]} 4... e6 {[%clk 0:02:58.1]} 5. O-O {[%clk 0:01:54.7]}
5... Be7 {[%clk 0:02:58.7]} 6. b3 {[%clk 0:01:55.2]} 6... O-O {[%clk 0:02:58.9]}
7. Bb2 {[%clk 0:01:55.8]} 7... c5 {[%clk 0:02:59.7]} 8. d4 {[%clk 0:01:55.1]}
8... d6 {[%clk 0:02:58.3]} 9. Nc3 {[%clk 0:01:54.4]} 9... cxd4 {[%clk
0:02:58.2]} 10. Qxd4 {[%clk 0:01:54.1]} 10... Nc6 {[%clk 0:02:56.9]} 11. Qd1
{[%clk 0:01:52]} 11... a6 {[%clk 0:02:57.3]} 12. Rc1 {[%clk 0:01:50.4]} 12...
Qc7 {[%clk 0:02:56]} 13. Nd5 {[%clk 0:01:47.7]} 13... Qd8 {[%clk 0:02:39.9]} 14.
Nxe7+ {[%clk 0:01:45.5]} 14... Qxe7 {[%clk 0:02:38.1]} 15. Qd3 {[%clk
0:01:07.8]} 15... Rfd8 {[%clk 0:02:22.7]} 16. Ba3 {[%clk 0:00:59.6]} 16... Qc7
{[%clk 0:02:06.3]} 17. Rfd1 {[%clk 0:00:53.5]} 17... d5 {[%clk 0:01:56.1]} 18.
cxd5 {[%clk 0:00:50.9]} 18... Rxd5 {[%clk 0:01:53]} 19. Qc2 {[%clk 0:00:44.9]}
19... Rad8 {[%clk 0:01:52.4]} 20. Rxd5 {[%clk 0:00:43.4]} 20... Rxd5 {[%clk
0:01:52.4]} 21. e4 {[%clk 0:00:40.8]} 21... Rd7 {[%clk 0:01:39.7]} 22. Ne5
{[%clk 0:00:27.5]} 22... Qxe5 {[%clk 0:01:29.5]} 23. Bb2 {[%clk 0:00:14]} 23...
Qa5 {[%clk 0:01:15.2]} 24. Bc3 {[%clk 0:00:10.7]} 24... Qa3 {[%clk 0:01:00.7]}
25. h3 {[%clk 0:00:07.1]} 25... h6 {[%clk 0:00:52]} 26. Kh2 {[%clk 0:00:07]}
26... Qe7 {[%clk 0:00:45.5]} 27. Qb2 {[%clk 0:00:04.5]} 27... Ne8 {[%clk
0:00:42.1]} 0-1

[Event "*** Titled Tuesday Blitz"]
[Site "Chess.com"]
[Date "2020.10.27"]
[Round "7"]
[White "nrvisakh"]
[Black "Aleksey_Sorokin"]
[Result "1/2-1/2"]
[WhiteElo "2694"]
[BlackElo "2836"]
[TimeControl "180+1"]
[EndTime "11:18:22 PDT"]
[Termination "Game drawn by agreement"]

1. e4 {[%clk 0:03:00.9]} 1... c6 {[%clk 0:02:59]} 2. d4 {[%clk 0:02:48.7]} 2...
d5 {[%clk 0:02:59.9]} 3. e5 {[%clk 0:02:49.1]} 3... Bf5 {[%clk 0:02:59.1]} 4. h4
{[%clk 0:02:49.2]} 4... h5 {[%clk 0:02:58.2]} 5. Bd3 {[%clk 0:02:46.8]} 5...
Bxd3 {[%clk 0:02:58.6]} 6. Qxd3 {[%clk 0:02:47.7]} 6... e6 {[%clk 0:02:59.2]} 7.
Bg5 {[%clk 0:02:44.7]} 7... Be7 {[%clk 0:02:59.4]} 8. Nf3 {[%clk 0:02:34.8]}
8... Nh6 {[%clk 0:02:59.1]} 9. Nbd2 {[%clk 0:02:32.2]} 9... Nf5 {[%clk
0:02:59.1]} 10. Bxe7 {[%clk 0:02:29.1]} 10... Qxe7 {[%clk 0:03:00]} 11. g3
{[%clk 0:02:29.3]} 11... c5 {[%clk 0:02:56.2]} 12. c3 {[%clk 0:02:29.1]} 12...
Nc6 {[%clk 0:02:56.1]} 13. O-O {[%clk 0:02:26.4]} 13... cxd4 {[%clk 0:02:56.3]}
14. cxd4 {[%clk 0:02:22.9]} 14... O-O {[%clk 0:02:56.8]} 15. Rfc1 {[%clk
0:02:21.5]} 15... Rac8 {[%clk 0:02:54.4]} 16. Nb3 {[%clk 0:02:20.5]} 16... Qb4
{[%clk 0:02:45.9]} 17. Rc3 {[%clk 0:01:59.1]} 17... Nce7 {[%clk 0:02:44.9]} 18.
Rac1 {[%clk 0:01:57.7]} 18... Rxc3 {[%clk 0:02:44.6]} 19. Qxc3 {[%clk
0:01:54.9]} 19... Qxc3 {[%clk 0:02:44.2]} 20. Rxc3 {[%clk 0:01:54]} 20... Rc8
{[%clk 0:02:45.1]} 21. Rxc8+ {[%clk 0:01:44.2]} 21... Nxc8 {[%clk 0:02:46]} 22.
Kf1 {[%clk 0:01:44.4]} 22... Kf8 {[%clk 0:02:41.5]} 23. Ke2 {[%clk 0:01:44.5]}
23... Ke8 {[%clk 0:02:41.4]} 24. Kd3 {[%clk 0:01:44.7]} 24... Nce7 {[%clk
0:02:40.9]} 25. a3 {[%clk 0:01:35.2]} 25... Nc6 {[%clk 0:02:39.7]} 26. Ne1
{[%clk 0:01:34.8]} 26... b6 {[%clk 0:02:37.4]} 27. Nc2 {[%clk 0:01:34.6]} 27...
f6 {[%clk 0:02:36.8]} 28. exf6 {[%clk 0:01:34]} 28... gxf6 {[%clk 0:02:37.7]}
29. Ne3 {[%clk 0:01:34.7]} 29... Nd6 {[%clk 0:02:33.1]} 30. Nd2 {[%clk
0:01:30.3]} 30... Kf7 {[%clk 0:02:32.1]} 31. f3 {[%clk 0:01:26.3]} 31... f5
{[%clk 0:02:26.3]} 32. g4 {[%clk 0:01:24.3]} 32... hxg4 {[%clk 0:02:09.4]} 33.
fxg4 {[%clk 0:01:23.7]} 33... f4 {[%clk 0:02:07.2]} 34. Ng2 {[%clk 0:01:20.3]}
34... e5 {[%clk 0:02:07.2]} 35. dxe5 {[%clk 0:01:16.6]} 35... Nxe5+ {[%clk
0:02:08.1]} 36. Ke2 {[%clk 0:01:16.8]} 36... Nxg4 {[%clk 0:01:56.8]} 37. Nxf4
{[%clk 0:01:16]} 37... d4 {[%clk 0:01:54.5]} 38. Nf3 {[%clk 0:01:14.6]} 38...
Nf5 {[%clk 0:01:49.9]} 39. Kd3 {[%clk 0:01:01.7]} 39... Kf6 {[%clk 0:01:46.4]}
40. Nxd4 {[%clk 0:00:55]} 40... Nxh4 {[%clk 0:01:42.9]} 41. Nc6 {[%clk 0:00:47]}
41... Ne5+ {[%clk 0:01:38.5]} 42. Nxe5 {[%clk 0:00:47.1]} 42... Kxe5 {[%clk
0:01:39.4]} 43. Ne2 {[%clk 0:00:48]} 43... Nf5 {[%clk 0:01:38.7]} 44. Nc3 {[%clk
0:00:48]} 44... Nd6 {[%clk 0:01:38.2]} 45. b3 {[%clk 0:00:47.1]} 45... a6 {[%clk
0:01:34.9]} 46. a4 {[%clk 0:00:46.9]} 46... a5 {[%clk 0:01:32.7]} 47. Ne2 {[%clk
0:00:45.8]} 47... Kd5 {[%clk 0:01:32.5]} 48. Nf4+ {[%clk 0:00:36.1]} 48... Kc5
{[%clk 0:01:32.1]} 49. Kc2 {[%clk 0:00:36.2]} 49... Nf5 {[%clk 0:01:30.8]} 50.
Nd3+ {[%clk 0:00:35.2]} 50... Kd4 {[%clk 0:01:30.2]} 51. Nb2 {[%clk 0:00:35.2]}
51... Nd6 {[%clk 0:01:27.8]} 52. Kd2 {[%clk 0:00:35.2]} 52... Ne4+ {[%clk
0:01:26.4]} 53. Kc2 {[%clk 0:00:34.9]} 53... Nc5 {[%clk 0:01:27.3]} 54. Nc4
{[%clk 0:00:33.6]} 54... Nxa4 {[%clk 0:01:25.8]} 55. Nxa5 {[%clk 0:00:33]} 55...
bxa5 {[%clk 0:01:24.2]} 56. bxa4 {[%clk 0:00:32.9]} 56... Kc4 {[%clk 0:01:24.6]}
1/2-1/2

[Event "*** Titled Tuesday Blitz"]
[Site "Chess.com"]
[Date "2020.10.27"]
[Round "7"]
[White "MatyChess1"]
[Black "MartinMatthiesen"]
[Result "1-0"]
[WhiteElo "2546"]
[BlackElo "2413"]
[TimeControl "180+1"]
[EndTime "11:18:22 PDT"]
[Termination "MatyChess1 won by resignation"]

1. e4 {[%clk 0:03:00.9]} 1... e5 {[%clk 0:02:57.9]} 2. Nf3 {[%clk 0:03:01]} 2...
Nc6 {[%clk 0:02:57.6]} 3. Bc4 {[%clk 0:03:01.6]} 3... Nf6 {[%clk 0:02:56.6]} 4.
d3 {[%clk 0:03:01.9]} 4... Bc5 {[%clk 0:02:55.9]} 5. c3 {[%clk 0:03:01.8]} 5...
d6 {[%clk 0:02:55.6]} 6. Bb3 {[%clk 0:03:02.4]} 6... a6 {[%clk 0:02:54.7]} 7. h3
{[%clk 0:03:02.8]} 7... O-O {[%clk 0:02:54.6]} 8. Bg5 {[%clk 0:03:02.4]} 8... h6
{[%clk 0:02:54.2]} 9. Bh4 {[%clk 0:03:02.7]} 9... g5 {[%clk 0:02:44.9]} 10. Bg3
{[%clk 0:03:02.6]} 10... Nh5 {[%clk 0:02:30.3]} 11. Bh2 {[%clk 0:02:58.8]} 11...
Nf4 {[%clk 0:02:29.2]} 12. Bxf4 {[%clk 0:02:54]} 12... gxf4 {[%clk 0:02:28.9]}
13. Nbd2 {[%clk 0:02:51.9]} 13... Kh8 {[%clk 0:02:25.4]} 14. g3 {[%clk
0:02:29.3]} 14... Qf6 {[%clk 0:02:18.3]} 15. Qe2 {[%clk 0:02:22.7]} 15... fxg3
{[%clk 0:02:11.5]} 16. fxg3 {[%clk 0:02:20.3]} 16... Rg8 {[%clk 0:02:11.9]} 17.
O-O-O {[%clk 0:02:00.1]} 17... Rxg3 {[%clk 0:02:09.9]} 18. Rdf1 {[%clk 0:02:00]}
18... Be6 {[%clk 0:01:58.8]} 19. Nd4 {[%clk 0:01:46.3]} 19... Qg6 {[%clk
0:01:47.5]} 20. Nf5 {[%clk 0:01:36.5]} 20... Rg2 {[%clk 0:01:45.9]} 21. Qe1
{[%clk 0:01:32.3]} 21... Rg8 {[%clk 0:01:39]} 22. Nh4 {[%clk 0:01:25.7]} 22...
Qh5 {[%clk 0:01:26.8]} 23. Nxg2 {[%clk 0:01:22.1]} 23... Rxg2 {[%clk 0:01:27.7]}
24. Kb1 {[%clk 0:01:15.4]} 24... Re2 {[%clk 0:01:14.2]} 25. Qd1 {[%clk
0:00:49.9]} 25... Be3 {[%clk 0:01:05.6]} 26. Bxe6 {[%clk 0:00:43]} 26... fxe6
{[%clk 0:01:04.1]} 27. Nc4 {[%clk 0:00:21.3]} 27... Bf4 {[%clk 0:00:58.5]} 28.
Rf2 {[%clk 0:00:15.9]} 28... b5 {[%clk 0:00:53.9]} 29. Qxe2 {[%clk 0:00:15.1]}
29... Qxe2 {[%clk 0:00:53.4]} 30. Rxe2 {[%clk 0:00:16]} 30... bxc4 {[%clk
0:00:54]} 31. dxc4 {[%clk 0:00:16.9]} 31... Kg7 {[%clk 0:00:50.4]} 32. b4 {[%clk
0:00:17]} 32... Ne7 {[%clk 0:00:48.9]} 33. a4 {[%clk 0:00:15.5]} 33... Ng8
{[%clk 0:00:43.4]} 34. a5 {[%clk 0:00:14.9]} 34... Nf6 {[%clk 0:00:40.8]} 35. b5
{[%clk 0:00:14.4]} 1-0

[Event "*** Titled Tuesday Blitz"]
[Site "Chess.com"]
[Date "2020.10.27"]
[Round "7"]
[White "FMJoseHerrera"]
[Black "anon102030"]
[Result "1-0"]
[WhiteElo "2571"]
[BlackElo "2739"]
[TimeControl "180+1"]
[EndTime "11:18:23 PDT"]
[Termination "FMJoseHerrera won by resignation"]

1. Nf3 {[%clk 0:02:54.3]} 1... d6 {[%clk 0:02:57.7]} 2. g3 {[%clk 0:02:53.5]}
2... g6 {[%clk 0:02:57.8]} 3. Bg2 {[%clk 0:02:53.7]} 3... Bg7 {[%clk 0:02:58.5]}
4. d3 {[%clk 0:02:54.6]} 4... Nc6 {[%clk 0:02:58.4]} 5. Nc3 {[%clk 0:02:55.5]}
5... e5 {[%clk 0:02:58.5]} 6. e4 {[%clk 0:02:55.7]} 6... f5 {[%clk 0:02:58.7]}
7. h4 {[%clk 0:02:55.7]} 7... h6 {[%clk 0:02:56.9]} 8. Be3 {[%clk 0:02:54.1]}
8... Nf6 {[%clk 0:02:54.9]} 9. Qd2 {[%clk 0:02:52.8]} 9... Ng4 {[%clk
0:02:54.4]} 10. O-O-O {[%clk 0:02:48.6]} 10... O-O {[%clk 0:02:51.5]} 11. Rdf1
{[%clk 0:02:38]} 11... Be6 {[%clk 0:02:45.2]} 12. d4 {[%clk 0:02:17.5]} 12...
fxe4 {[%clk 0:02:33.4]} 13. Nxe4 {[%clk 0:02:15]} 13... Bd5 {[%clk 0:02:29.8]}
14. Nh2 {[%clk 0:01:56.9]} 14... Nxh2 {[%clk 0:02:17.1]} 15. Rxh2 {[%clk
0:01:57.8]} 15... Nxd4 {[%clk 0:01:55]} 16. Bxh6 {[%clk 0:01:52.8]} 16... Qd7
{[%clk 0:01:35.1]} 17. c3 {[%clk 0:01:43.8]} 17... Bxe4 {[%clk 0:01:21.7]} 18.
Bxe4 {[%clk 0:01:44.7]} 18... Nf5 {[%clk 0:01:19.7]} 19. Bxg7 {[%clk 0:01:44.3]}
19... Kxg7 {[%clk 0:01:19.1]} 20. h5 {[%clk 0:01:43.1]} 20... Nxg3 {[%clk
0:00:51.6]} 21. hxg6 {[%clk 0:01:22]} 21... Nxf1 {[%clk 0:00:22]} 22. Qh6+
{[%clk 0:01:18.7]} 22... Kf6 {[%clk 0:00:21.9]} 23. g7+ {[%clk 0:01:10.9]} 23...
Ke7 {[%clk 0:00:20.7]} 24. Qg5+ {[%clk 0:01:02.3]} 24... Rf6 {[%clk 0:00:20]}
25. Rh7 {[%clk 0:01:02.1]} 25... Rg8 {[%clk 0:00:19.5]} 26. Bd5 {[%clk 0:01:00]}
26... Qe8 {[%clk 0:00:18.1]} 27. Rh6 {[%clk 0:00:49.4]} 27... c6 {[%clk
0:00:10]} 28. Qxf6+ {[%clk 0:00:48.5]} 28... Kd7 {[%clk 0:00:10.5]} 29. Qe6+
{[%clk 0:00:46.1]} 29... Kc7 {[%clk 0:00:07.4]} 30. Qxg8 {[%clk 0:00:44.9]}
30... Qe7 {[%clk 0:00:05.3]} 31. Qf7 {[%clk 0:00:45.8]} 31... cxd5 {[%clk
0:00:02.1]} 32. Qxe7+ {[%clk 0:00:44.8]} 1-0

[Event "*** Titled Tuesday Blitz"]
[Site "Chess.com"]
[Date "2020.10.27"]
[Round "7"]
[White "bazar-wokzal"]
[Black "Gloomy_Wanderer"]
[Result "0-1"]
[WhiteElo "2499"]
[BlackElo "2715"]
[TimeControl "180+1"]
[EndTime "11:18:28 PDT"]
[Termination "Gloomy_Wanderer won on time"]

1. e4 {[%clk 0:03:00.9]} 1... c5 {[%clk 0:02:59.4]} 2. c3 {[%clk 0:03:00.9]}
2... a6 {[%clk 0:02:59.2]} 3. d4 {[%clk 0:02:59.6]} 3... cxd4 {[%clk 0:03:00.1]}
4. cxd4 {[%clk 0:02:59.5]} 4... d5 {[%clk 0:03:00.2]} 5. e5 {[%clk 0:02:51.8]}
5... Nc6 {[%clk 0:02:59.7]} 6. Nc3 {[%clk 0:02:50.9]} 6... Bf5 {[%clk
0:02:59.5]} 7. g4 {[%clk 0:02:45]} 7... Bg6 {[%clk 0:02:55.5]} 8. e6 {[%clk
0:02:30.1]} 8... fxe6 {[%clk 0:02:45.5]} 9. f4 {[%clk 0:02:25.5]} 9... Nf6
{[%clk 0:02:26.3]} 10. Be3 {[%clk 0:02:17.7]} 10... Qb6 {[%clk 0:02:14.1]} 11.
h3 {[%clk 0:01:27.8]} 11... Qxb2 {[%clk 0:02:03.7]} 12. Rc1 {[%clk 0:01:26.8]}
12... Ne4 {[%clk 0:01:55.8]} 13. Nge2 {[%clk 0:01:21.1]} 13... Nxc3 {[%clk
0:01:24.8]} 14. Rxc3 {[%clk 0:01:13]} 14... e5 {[%clk 0:01:19.7]} 15. f5 {[%clk
0:00:54.1]} 15... Bf7 {[%clk 0:01:06.4]} 16. Rb3 {[%clk 0:00:49.5]} 16... Qxa2
{[%clk 0:01:04.1]} 17. Rxb7 {[%clk 0:00:48.1]} 17... e6 {[%clk 0:00:57.5]} 18.
Qc1 {[%clk 0:00:15.6]} 18... Rc8 {[%clk 0:00:42]} 19. Rb8 {[%clk 0:00:08.3]}
19... Kd7 {[%clk 0:00:26.4]} 20. Rxc8 {[%clk 0:00:07.5]} 20... Bb4+ {[%clk
0:00:24.9]} 21. Kf2 {[%clk 0:00:07.4]} 21... Rxc8 {[%clk 0:00:24.6]} 22. Bg2
{[%clk 0:00:03.5]} 22... exd4 {[%clk 0:00:23.1]} 23. fxe6+ {[%clk 0:00:02.9]}
23... Bxe6 {[%clk 0:00:24]} 0-1